fUSD/lending_fUSD_20240822
["ID","MTS","AMOUNT","RATE_DAILY","PERIOD"]
[335590089,1724349038477,-155.0,0.00010799,2]
[335590090,1724349038486,-150.0,0.00010802,2]
[335590091,1724349038496,-300.0,0.00010802,2]
[335590092,1724349038505,-205.80101645,0.00010802,2]
[335590093,1724349038514,-150.0,0.00010803,2]
[335590094,1724349038523,-150.0,0.00010803,2]
[335590095,1724349038532,-150.0,0.00010803,2]
[335590096,1724349038542,-150.0,0.00010804,2]
[335590097,1724349038551,-150.0,0.00010806,2]
[335590098,1724349038560,-150.0,0.0001081,2]
[335590099,1724349038570,-150.0,0.0001081,2]
[335590100,1724349038579,-150.0,0.00010813,2]
[335590101,1724349038588,-150.0,0.00010816,2]
[335590102,1724349038597,-150.0,0.00010816,2]
[335590103,1724349038606,-150.0,0.00010816,2]
[335590104,1724349038615,-739.0078373,0.00010818,2]
[335590105,1724349038624,-150.0,0.00010818,2]
[335590106,1724349038633,-150.0,0.00010818,2]
[335590107,1724349038643,-150.0,0.00010818,2]
[335590108,1724349038653,-150.0,0.00010819,2]
[335590109,1724349038662,-150.0,0.00010819,2]
[335590110,1724349038671,-150.0,0.00010819,2]
[335590111,1724349038682,-150.0,0.00010819,2]
[335590112,1724349038691,-150.0,0.0001082,2]
[335590113,1724349038700,-150.0,0.00010823,2]
[335590114,1724349038710,-1500.0,0.0001083,2]
[335590115,1724349038719,-150.0,0.00010831,2]
[335590116,1724349038728,-150.0,0.00010838,2]
[335590117,1724349038738,-150.0,0.00010843,2]
[335590118,1724349038748,-150.0,0.00010847,2]
[335590119,1724349038758,-14147.48221177,0.00010849,2]
[335590120,1724349038769,-599.2800009,0.00010849,2]
[335590121,1724349038783,-3859.92220733,0.00010849,2]
[335590122,1724349038792,-232.056538,0.00010849,2]
[335590123,1724349038802,-232.056538,0.00010849,2]
[335590124,1724349038811,-225.952071,0.00010849,2]
[335590125,1724349038820,-3537.640157,0.00010849,2]
[335590126,1724349038829,-3537.640157,0.00010849,2]
[335590127,1724349038839,-225.952071,0.00010849,2]
[335590128,1724349038847,-2430.889511,0.00010849,2]
[335590129,1724349038857,-2430.889511,0.00010849,2]
[335590130,1724349038867,-150.0,0.00010849,2]
[335590131,1724349038876,-200.0,0.00010849,2]
[335590132,1724349038885,-2000.0,0.00010849,2]
[335590133,1724349038894,-200.0,0.00010849,2]
[335590134,1724349038904,-150.0,0.0001085,2]
[335590135,1724349038913,-150.0,0.00010851,2]
[335590136,1724349038923,-150.0,0.00010851,2]
[335590137,1724349038932,-256.72459399,0.00010852,2]
[335590138,1724349038941,-150.0,0.00010852,2]
[335590139,1724349038950,-150.0,0.00010854,2]
[335590140,1724349038959,-150.0,0.00010854,2]
[335590141,1724349038969,-631.8696116,0.00010855,2]
[335590142,1724349038981,-868.1303884,0.00010855,2]
[335590143,1724349038990,-150.0,0.00010855,2]
[335590144,1724349038999,-150.0,0.00010864,2]
[335590145,1724349039008,-150.0,0.00010865,2]
[335590146,1724349039019,-150.0,0.00010866,2]
[335590147,1724349039028,-150.0,0.00010872,2]
[335590148,1724349039037,-150.0,0.00010872,2]
[335590149,1724349039046,-150.0,0.00010874,2]
[335590150,1724349039055,-150.0,0.00010874,2]
[335590151,1724349039064,-150.0,0.00010877,2]
[335590152,1724349039073,-1500.0,0.00010877,2]
[335590153,1724349039082,-150.0,0.00010878,2]
[335590154,1724349039091,-150.0,0.00010878,2]
[335590155,1724349039100,-150.0,0.0001088,2]
[335590156,1724349039109,-150.0,0.0001088,2]
[335590157,1724349039118,-1492.98958919,0.00010882,2]
[335590158,1724349039128,-150.0,0.00010883,2]
[335590159,1724349039136,-150.0,0.00010884,2]
[335590160,1724349039146,-150.0,0.00010884,2]
[335590161,1724349039155,-150.0,0.00010885,2]
[335590162,1724349039163,-531.39122984,0.00010888,2]
[335590163,1724349039173,-150.0,0.00010891,2]
[335590164,1724349039182,-150.0,0.00010891,2]
[335590165,1724349039191,-150.0,0.00010893,2]
[335590166,1724349039200,-150.0,0.00010896,2]
[335590167,1724349039209,-707.3961,0.00010897,2]
[335590168,1724349039218,-150.0,0.00010897,2]
[335590169,1724349039228,-150.0,0.00010898,2]
[335590170,1724349039236,-150.0,0.00010899,2]
[335590171,1724349039245,-1936.63027445,0.00010899,2]
[335590172,1724349039256,-1936.63027437,0.00010899,2]
[335590173,1724349039265,-150.0,0.00010899,2]
[335590174,1724349039275,-1936.63027437,0.00010899,2]
[335590175,1724349039284,-1936.63027437,0.00010899,2]
[335590176,1724349039293,-1936.63027437,0.00010899,2]
[335590177,1724349039302,-1936.63027437,0.00010899,2]
[335590178,1724349039311,-1936.63027437,0.00010899,2]
[335590179,1724349039320,-1936.63027437,0.00010899,2]
[335590180,1724349039329,-1936.63027437,0.000109,2]
[335590181,1724349039338,-150.0,0.000109,2]
[335590182,1724349039347,-150.0,0.000109,2]
[335590183,1724349039356,-150.0,0.000109,2]
[335590184,1724349039366,-150.0,0.000109,2]
[335590185,1724349039375,-150.0,0.000109,2]
[335590186,1724349039384,-150.0,0.000109,2]
[335590187,1724349039393,-421.4,0.000109,2]
[335590188,1724349039404,-300.66,0.000109,2]
[335590189,1724349039413,-150.0,0.000109,2]
[335590190,1724349039422,-790.76,0.000109,2]
[335590191,1724349039434,-150.18,0.000109,2]
[335590192,1724349039443,-150.0,0.000109,2]
[335590193,1724349039452,-150.0,0.000109,2]
[335590194,1724349039461,-150.0,0.000109,2]
[335590195,1724349039470,-790.76,0.000109,2]
[335590196,1724349039480,-150.0,0.000109,2]
[335590197,1724349039489,-790.76,0.000109,2]
[335590198,1724349039498,-150.0,0.000109,2]
[335590199,1724349039507,-150.0,0.000109,2]
[335590200,1724349039516,-150.0,0.000109,2]
[335590201,1724349039526,-155.09,0.000109,2]
[335590202,1724349039536,-150.0,0.000109,2]
[335590203,1724349039545,-150.0,0.000109,2]
[335590204,1724349039554,-150.0,0.000109,2]
[335590205,1724349039563,-150.0,0.000109,2]
[335590206,1724349039573,-150.0,0.000109,2]
[335590207,1724349039582,-1936.63027437,0.000109,2]
[335590208,1724349039591,-243.9973009,0.000109,2]
[335590209,1724349039601,-150.0,0.00010902,2]
[335590210,1724349039610,-150.0,0.00010902,2]
[335590211,1724349039731,-150.0,0.00010904,2]
[335590212,1724349039747,-360.63,0.00010904,2]
[335590213,1724349039756,-150.0,0.00010904,2]
[335590214,1724349039765,-150.0,0.00010904,2]
[335590215,1724349039774,-150.0,0.00010904,2]
[335590216,1724349039784,-226.2741535,0.00010905,2]
[335590217,1724349039793,-150.0,0.00010906,2]
[335590218,1724349039802,-150.0,0.00010907,2]
[335590219,1724349039811,-150.0,0.00010909,2]
[335590220,1724349039820,-150.0,0.00010912,2]
[335590221,1724349039829,-150.0,0.00010914,2]
[335590222,1724349039838,-150.0,0.00010916,2]
[335590223,1724349039847,-150.0,0.00010916,2]
[335590224,1724349039856,-150.0,0.00010921,2]
[335590225,1724349039866,-150.0,0.00010922,2]
[335590226,1724349039875,-1472.98358961,0.00010933,2]
[335590227,1724349039887,-27.01641039,0.00010933,2]
[335590228,1724349039896,-150.0,0.00010934,2]
[335590229,1724349039906,-150.0,0.00010934,2]
[335590230,1724349039915,-300.70201465,0.0001094,2]
[335590231,1724349039924,-319.251,0.00010942,2]
[335590232,1724349039933,-625.607,0.00010942,2]
[335590233,1724349039943,-221.66343389,0.00010942,2]
[335590234,1724349039954,-1116.49262491,0.00010942,2]
[335590235,1724349039966,-557.8439412,0.00010942,2]
[335590236,1724349039975,-551.0,0.00010942,2]
[335590237,1724349039986,-3155.907,0.00010942,2]
[335590238,1724349039995,-247.1,0.00010942,2]
[335590239,1724349040006,-289.0,0.00010942,2]
[335590240,1724349040017,-830.659,0.00010942,2]
[335590241,1724349040029,-150.0,0.00010943,2]
[335590243,1724349040038,-150.0,0.00010943,2]
[335590244,1724349040047,-284.24356678,0.00010946,2]
[335590246,1724349040059,-150.0,0.00010949,2]
[335590248,1724349040069,-534.0,0.0001095,2]
[335590249,1724349040078,-1500.0,0.0001095,2]
[335590250,1724349040088,-150.0,0.0001095,2]
[335590251,1724349040099,-150.0,0.00010952,2]
[335590252,1724349040110,-150.0,0.00010953,2]
[335590253,1724349040119,-150.0,0.00010954,2]
[335590254,1724349040128,-150.0,0.00010954,2]
[335590255,1724349040137,-150.0,0.00010955,2]
[335590256,1724349040147,-150.0,0.00010955,2]
[335590257,1724349040156,-150.0,0.00010956,2]
[335590258,1724349040165,-150.0,0.00010956,2]
[335590259,1724349040175,-200.0,0.00010958,2]
[335590260,1724349040184,-150.0,0.00010958,2]
[335590261,1724349040194,-200.0,0.00010958,2]
[335590262,1724349040203,-153.97,0.00010959,2]
[335590263,1724349040213,-445.72,0.00010959,2]
[335590264,1724349040222,-250.0,0.00010959,2]
[335590265,1724349040233,-150.0,0.00010959,2]
[335590266,1724349040243,-205.01,0.0001096,2]
[335590267,1724349040252,-1500.0,0.00010967,2]
[335590268,1724349040262,-150.0,0.00010968,2]
[335590269,1724349040272,-150.0,0.00010972,2]
[335590271,1724349040281,-150.0,0.00010973,2]
[335590273,1724349040290,-150.0,0.00010977,2]
[335590274,1724349040299,-179.4623719,0.00010979,2]
[335590276,1724349040309,-155.61945661,0.00010979,2]
[335590277,1724349040320,-175.02110761,0.00010979,2]
[335590279,1724349040330,-155.44784194,0.00010979,2]
[335590281,1724349040340,-150.0,0.00010985,2]
[335590282,1724349040349,-150.0,0.00010986,2]
[335590284,1724349040358,-150.0,0.00010989,2]
[335590285,1724349040367,-150.0,0.00010989,2]
[335590287,1724349040378,-440.02330588,0.00010989,2]
[335590288,1724349040387,-524.25987859,0.00010989,2]
[335590290,1724349040397,-155.46554055,0.00010989,2]
[335590292,1724349040407,-155.48849763,0.00010989,2]
[335590293,1724349040419,-20538.5553372,0.00010992,2]
[335590295,1724349040429,-2735.0293629,0.00010992,2]
[335590297,1724349040438,-827.7713002,0.00010992,2]
[335590299,1724349040448,-411.38673458,0.00010993,2]
[335590300,1724349040458,-150.0,0.00010995,2]
[335590302,1724349040468,-500.58,0.00010996,2]
[335590304,1724349040476,-1004.99,0.00010996,2]
[335590305,1724349040486,-230.59,0.00010996,2]
[335590307,1724349040495,-500.0,0.00010996,2]
[335590308,1724349040504,-3035.44,0.00010996,2]
[335590310,1724349040514,-1832.4,0.00010996,2]
[335590312,1724349040523,-500.0,0.00010996,2]
[335590313,1724349040532,-500.0,0.00010996,2]
[335590314,1724349040542,-500.0,0.00010996,2]
[335590315,1724349040551,-1479.85,0.00010996,2]
[335590316,1724349040560,-392.86211991,0.00010996,2]
[335590317,1724349040570,-500.0,0.00010996,2]
[335590318,1724349040579,-500.0,0.00010996,2]
[335590319,1724349040589,-500.0,0.00010996,2]
[335590320,1724349040598,-500.0,0.00010996,2]
[335590321,1724349040607,-507.69,0.00010996,2]
[335590322,1724349040616,-1458.26,0.00010996,2]
[335590323,1724349040626,-500.0,0.00010996,2]
[335590324,1724349040635,-500.0,0.00010996,2]
[335590325,1724349040644,-500.0,0.00010996,2]
[335590326,1724349040653,-500.0,0.00010996,2]
[335590327,1724349040663,-500.0,0.00010996,2]
[335590328,1724349040672,-500.0,0.00010996,2]
[335590329,1724349040686,-500.0,0.00010996,2]
[335590330,1724349040695,-500.0,0.00010996,2]
[335590331,1724349040704,-500.0,0.00010996,2]
[335590332,1724349040714,-150.0,0.00010996,2]
[335590333,1724349040723,-500.0,0.00010996,2]
[335590334,1724349040732,-500.0,0.00010996,2]
[335590335,1724349040741,-500.0,0.00010996,2]
[335590336,1724349040750,-500.0,0.00010996,2]
[335590337,1724349040759,-500.0,0.00010996,2]
[335590338,1724349040768,-500.0,0.00010996,2]
[335590339,1724349040777,-500.0,0.00010996,2]
[335590341,1724349040787,-2873.16,0.00010996,2]
[335590343,1724349040796,-500.0,0.00010996,2]
[335590345,1724349040805,-254.39524348,0.00010996,2]
[335590346,1724349040814,-500.0,0.00010996,2]
[335590348,1724349040823,-500.0,0.00010996,2]
[335590350,1724349040832,-500.0,0.00010996,2]
[335590352,1724349040841,-500.0,0.00010996,2]
[335590354,1724349040850,-500.0,0.00010996,2]
[335590356,1724349040859,-500.0,0.00010996,2]
[335590357,1724349040869,-921.26,0.00010996,2]
[335590360,1724349040879,-921.26,0.00010996,2]
[335590362,1724349040889,-500.0,0.00010996,2]
[335590363,1724349040898,-500.0,0.00010996,2]
[335590364,1724349040907,-500.0,0.00010996,2]
[335590365,1724349040916,-500.0,0.00010996,2]
[335590366,1724349040929,-500.0,0.00010996,2]
[335590367,1724349040940,-500.0,0.00010996,2]
[335590368,1724349040948,-500.0,0.00010996,2]
[335590369,1724349040957,-500.0,0.00010996,2]
[335590370,1724349040966,-500.0,0.00010996,2]
[335590371,1724349040975,-500.0,0.00010996,2]
[335590372,1724349040984,-500.0,0.00010996,2]
[335590373,1724349040993,-500.0,0.00010996,2]
[335590374,1724349041002,-500.0,0.00010996,2]
[335590375,1724349041013,-500.0,0.00010996,2]
[335590376,1724349041026,-500.0,0.00010996,2]
[335590377,1724349041034,-500.0,0.00010996,2]
[335590378,1724349041043,-500.0,0.00010996,2]
[335590379,1724349041053,-500.0,0.00010996,2]
[335590380,1724349041062,-500.0,0.00010996,2]
[335590381,1724349041071,-500.0,0.00010996,2]
[335590382,1724349041080,-500.0,0.00010996,2]
[335590383,1724349041090,-500.0,0.00010996,2]
[335590384,1724349041100,-501.22080292,0.00010996,2]
[335590385,1724349041109,-500.0,0.00010996,2]
[335590386,1724349041119,-500.0,0.00010996,2]
[335590387,1724349041128,-500.0,0.00010996,2]
[335590388,1724349041137,-500.0,0.00010996,2]
[335590389,1724349041146,-500.0,0.00010996,2]
[335590390,1724349041155,-500.0,0.00010996,2]
[335590391,1724349041164,-500.0,0.00010996,2]
[335590392,1724349041173,-500.0,0.00010996,2]
[335590393,1724349041183,-500.0,0.00010996,2]
[335590394,1724349041192,-500.0,0.00010996,2]
[335590395,1724349041201,-500.0,0.00010996,2]
[335590396,1724349041211,-500.0,0.00010996,2]
[335590397,1724349041220,-501.80284095,0.00010996,2]
[335590398,1724349041229,-500.0,0.00010996,2]
[335590399,1724349041238,-500.0,0.00010996,2]
[335590400,1724349041247,-500.0,0.00010996,2]
[335590401,1724349041256,-500.01120502,0.00010996,2]
[335590402,1724349041266,-509.36318051,0.00010996,2]
[335590403,1724349041275,-500.0,0.00010996,2]
[335590404,1724349041284,-500.0,0.00010996,2]
[335590405,1724349041293,-500.0,0.00010996,2]
[335590406,1724349041302,-500.0,0.00010996,2]
[335590407,1724349041311,-500.0,0.00010996,2]
[335590408,1724349041320,-500.0,0.00010996,2]
[335590409,1724349041329,-500.0,0.00010996,2]
[335590410,1724349041338,-500.0,0.00010996,2]
[335590411,1724349041348,-500.0,0.00010996,2]
[335590412,1724349041357,-500.0,0.00010996,2]
[335590413,1724349041366,-500.0,0.00010996,2]
[335590414,1724349041375,-500.0,0.00010996,2]
[335590415,1724349041384,-500.0,0.00010996,2]
[335590416,1724349041393,-500.0,0.00010996,2]
[335590417,1724349041403,-500.0,0.00010996,2]
[335590418,1724349041412,-500.0,0.00010996,2]
[335590419,1724349041422,-500.0,0.00010996,2]
[335590420,1724349041431,-500.0,0.00010996,2]
[335590421,1724349041441,-500.0,0.00010996,2]
[335590422,1724349041450,-500.0,0.00010996,2]
[335590423,1724349041459,-500.0,0.00010996,2]
[335590424,1724349041469,-500.0,0.00010996,2]
[335590425,1724349041478,-500.0,0.00010996,2]
[335590426,1724349041487,-500.0,0.00010996,2]
[335590427,1724349041496,-504.08620911,0.00010996,2]
[335590428,1724349041505,-500.0,0.00010996,2]
[335590429,1724349041514,-500.0,0.00010996,2]
[335590430,1724349041523,-500.0,0.00010996,2]
[335590431,1724349041533,-500.0,0.00010996,2]
[335590432,1724349041542,-500.0,0.00010996,2]
[335590433,1724349041551,-500.0,0.00010996,2]
[335590434,1724349041560,-500.0,0.00010996,2]
[335590435,1724349041569,-500.0,0.00010996,2]
[335590436,1724349041578,-500.0,0.00010996,2]
[335590437,1724349041588,-500.0,0.00010996,2]
[335590438,1724349041597,-500.0,0.00010996,2]
[335590439,1724349041606,-500.0,0.00010996,2]
[335590440,1724349041616,-500.0,0.00010996,2]
[335590441,1724349041723,-500.0,0.00010996,2]
[335590442,1724349041733,-500.0,0.00010996,2]
[335590443,1724349041742,-500.0,0.00010996,2]
[335590444,1724349041751,-500.0,0.00010996,2]
[335590445,1724349041760,-500.0,0.00010996,2]
[335590446,1724349041769,-500.0,0.00010996,2]
[335590447,1724349041778,-500.0,0.00010996,2]
[335590448,1724349041787,-500.0,0.00010996,2]
[335590449,1724349041797,-500.0,0.00010996,2]
[335590450,1724349041806,-500.0,0.00010996,2]
[335590451,1724349041815,-500.0,0.00010996,2]
[335590452,1724349041824,-500.0,0.00010996,2]
[335590453,1724349041833,-500.0,0.00010996,2]
[335590454,1724349041842,-500.0,0.00010996,2]
[335590455,1724349041851,-500.0,0.00010996,2]
[335590456,1724349041860,-500.0,0.00010996,2]
[335590457,1724349041870,-500.0,0.00010996,2]
[335590458,1724349041879,-500.0,0.00010997,2]
[335590459,1724349041888,-500.0,0.00010997,2]
[335590460,1724349041897,-500.0,0.00010997,2]
[335590461,1724349041906,-500.0,0.00010997,2]
[335590462,1724349041915,-500.0,0.00010997,2]
[335590463,1724349041924,-500.0,0.00010997,2]
[335590464,1724349041935,-500.0,0.00010997,2]
[335590465,1724349041944,-500.0,0.00010997,2]
[335590466,1724349041953,-500.0,0.00010997,2]
[335590467,1724349041962,-500.0,0.00010997,2]
[335590468,1724349041971,-500.0,0.00010997,2]
[335590469,1724349041981,-500.0,0.00010997,2]
[335590470,1724349041992,-500.0,0.00010997,2]
[335590471,1724349042002,-500.0,0.00010997,2]
[335590472,1724349042012,-500.0,0.00010997,2]
[335590473,1724349042024,-500.0,0.00010997,2]
[335590474,1724349042033,-500.0,0.00010997,2]
[335590475,1724349042042,-500.0,0.00010997,2]
[335590476,1724349042052,-500.0,0.00010997,2]
[335590477,1724349042062,-500.0,0.00010997,2]
[335590478,1724349042071,-500.0,0.00010997,2]
[335590479,1724349042082,-500.0,0.00010997,2]
[335590480,1724349042091,-502.4281511,0.00010997,2]
[335590481,1724349042101,-500.0,0.00010997,2]
[335590482,1724349042110,-500.0,0.00010997,2]
[335590483,1724349042119,-500.0,0.00010997,2]
[335590484,1724349042128,-503.382588,0.00010997,2]
[335590485,1724349042138,-500.0,0.00010997,2]
[335590486,1724349042147,-11.13333453,0.00010997,2]
[335590487,1724349042167,-488.86666547,0.00010997,2]
[335590488,1724349042177,-502.7683862,0.00010997,2]
[335590489,1724349042186,-500.0,0.00010997,2]
[335590490,1724349042196,-500.0,0.00010997,2]
[335590491,1724349042205,-500.0,0.00010997,2]
[335590492,1724349042215,-500.0,0.00010997,2]
[335590493,1724349042224,-500.0,0.00010997,2]
[335590494,1724349042233,-500.0,0.00010997,2]
[335590495,1724349042243,-500.0,0.00010997,2]
[335590496,1724349042253,-500.0,0.00010997,2]
[335590497,1724349042263,-500.0,0.00010997,2]
[335590498,1724349042272,-294.12699074,0.00010997,2]
[335590499,1724349042285,-205.87300926,0.00010997,2]
[335590500,1724349042295,-500.0,0.00010997,2]
[335590501,1724349042304,-500.0,0.00010997,2]
[335590502,1724349042314,-73.89013334,0.00010997,2]
[335590503,1724349042325,-426.10986666,0.00010997,2]
[335590504,1724349042335,-565.7535233,0.00010997,2]
[335590505,1724349042344,-500.0,0.00010997,2]
[335590506,1724349042355,-500.0,0.00010997,2]
[335590507,1724349042365,-500.0,0.00010997,2]
[335590508,1724349042374,-46.84193355,0.00010997,2]
[335590509,1724349042387,-453.15806645,0.00010997,2]
[335590510,1724349042397,-361.84193355,0.00010997,2]
[335590511,1724349042410,-138.15806645,0.00010997,2]
[335590512,1724349042420,-500.0,0.00010997,2]
[335590513,1724349042430,-500.0,0.00010997,2]
[335590514,1724349042439,-500.0,0.00010997,2]
[335590515,1724349042449,-500.0,0.00010997,2]
[335590516,1724349042459,-500.0,0.00010997,2]
[335590517,1724349042468,-500.0,0.00010997,2]
[335590518,1724349042478,-500.0,0.00010997,2]
[335590519,1724349042488,-500.0,0.00010997,2]
[335590520,1724349042497,-500.0,0.00010997,2]
[335590521,1724349042506,-500.0,0.00010997,2]
[335590522,1724349042515,-500.0,0.00010997,2]
[335590523,1724349042524,-500.0,0.00010997,2]
[335590524,1724349042533,-500.0,0.00010997,2]
[335590525,1724349042542,-500.0,0.00010997,2]
[335590526,1724349042551,-500.0,0.00010997,2]
[335590527,1724349042560,-500.0,0.00010997,2]
[335590528,1724349042570,-500.0,0.00010997,2]
[335590529,1724349042578,-500.0,0.00010997,2]
[335590530,1724349042587,-500.0,0.00010997,2]
[335590531,1724349042596,-500.0,0.00010997,2]
[335590532,1724349042605,-500.0,0.00010997,2]
[335590533,1724349042614,-500.0,0.00010997,2]
[335590534,1724349042623,-500.0,0.00010997,2]
[335590535,1724349042632,-500.0,0.00010997,2]
[335590536,1724349042642,-500.0,0.00010997,2]
[335590537,1724349042651,-500.0,0.00010997,2]
[335590538,1724349042660,-500.0,0.00010997,2]
[335590539,1724349042670,-500.0,0.00010997,2]
[335590540,1724349042679,-500.0,0.00010997,2]
[335590541,1724349042688,-500.0,0.00010997,2]
[335590542,1724349042697,-500.0,0.00010997,2]
[335590543,1724349042706,-500.0,0.00010997,2]
[335590544,1724349042715,-500.0,0.00010997,2]
[335590545,1724349042724,-500.0,0.00010997,2]
[335590546,1724349042733,-500.0,0.00010997,2]
[335590547,1724349042742,-500.0,0.00010997,2]
[335590548,1724349042751,-500.0,0.00010997,2]
[335590549,1724349042760,-500.0,0.00010997,2]
[335590550,1724349042769,-500.0,0.00010997,2]
[335590551,1724349042779,-500.0,0.00010997,2]
[335590552,1724349042788,-500.0,0.00010997,2]
[335590553,1724349042796,-500.0,0.00010997,2]
[335590554,1724349042806,-500.0,0.00010997,2]
[335590555,1724349042815,-192.47642833,0.00010997,2]
[335590556,1724349042824,-500.0,0.00010997,2]
[335590557,1724349042833,-500.0,0.00010997,2]
[335590558,1724349042842,-500.0,0.00010997,2]
[335590559,1724349042851,-500.0,0.00010997,2]
[335590560,1724349042860,-500.0,0.00010997,2]
[335590561,1724349042869,-500.0,0.00010997,2]
[335590562,1724349042878,-500.0,0.00010997,2]
[335590563,1724349042887,-403.16895309,0.00010997,2]
[335590564,1724349042896,-500.0,0.00010997,2]
[335590565,1724349042905,-500.0,0.00010997,2]
[335590566,1724349042914,-500.0,0.00010997,2]
[335590567,1724349042923,-500.0,0.00010997,2]
[335590568,1724349042932,-500.0,0.00010997,2]
[335590569,1724349042941,-500.0,0.00010997,2]
[335590570,1724349042950,-500.0,0.00010997,2]
[335590571,1724349042959,-500.0,0.00010997,2]
[335590572,1724349042968,-500.0,0.00010997,2]
[335590574,1724349042977,-500.0,0.00010997,2]
[335590576,1724349042986,-500.0,0.00010997,2]
[335590577,1724349042995,-500.0,0.00010997,2]
[335590578,1724349043003,-500.0,0.00010997,2]
[335590579,1724349043012,-525.92,0.00010997,2]
[335590580,1724349043024,-500.0,0.00010997,2]
[335590582,1724349043033,-500.0,0.00010997,2]
[335590583,1724349043042,-500.0,0.00010997,2]
[335590585,1724349043051,-500.0,0.00010997,2]
[335590587,1724349043061,-500.0,0.00010997,2]
[335590589,1724349043070,-500.0,0.00010997,2]
[335590591,1724349043079,-500.0,0.00010997,2]
[335590593,1724349043089,-500.0,0.00010997,2]
[335590595,1724349043100,-500.0,0.00010997,2]
[335590597,1724349043110,-500.0,0.00010997,2]
[335590599,1724349043119,-500.0,0.00010997,2]
[335590601,1724349043128,-500.0,0.00010997,2]
[335590603,1724349043137,-500.0,0.00010997,2]
[335590605,1724349043146,-500.0,0.00010997,2]
[335590607,1724349043155,-500.0,0.00010997,2]
[335590611,1724349043164,-500.0,0.00010997,2]
[335590614,1724349043173,-500.0,0.00010997,2]
[335590617,1724349043183,-500.0,0.00010997,2]
[335590621,1724349043192,-500.0,0.00010997,2]
[335590625,1724349043202,-500.0,0.00010997,2]
[335590628,1724349043211,-500.0,0.00010997,2]
[335590631,1724349043220,-500.0,0.00010997,2]
[335590632,1724349043229,-534.58226863,0.00010997,2]
[335590636,1724349043239,-500.0,0.00010997,2]
[335590639,1724349043248,-500.0,0.00010997,2]
[335590643,1724349043257,-500.0,0.00010997,2]
[335590647,1724349043267,-500.0,0.00010997,2]
[335590648,1724349043276,-500.0,0.00010997,2]
[335590653,1724349043287,-500.0,0.00010997,2]
[335590656,1724349043296,-192.79766591,0.00010997,2]
[335590659,1724349043305,-500.0,0.00010997,2]
[335590661,1724349043314,-500.0,0.00010997,2]
[335590663,1724349043324,-500.0,0.00010997,2]
[335590665,1724349043333,-500.0,0.00010997,2]
[335590667,1724349043342,-500.0,0.00010997,2]
[335590669,1724349043351,-500.0,0.00010997,2]
[335590670,1724349043359,-500.0,0.00010997,2]
[335590673,1724349043369,-500.0,0.00010997,2]
[335590674,1724349043378,-500.0,0.00010997,2]
[335590676,1724349043387,-632.97,0.00010997,2]
[335590678,1724349043396,-500.0,0.00010997,2]
[335590680,1724349043405,-500.0,0.00010997,2]